[Event "*** SCC Grand Prix: Titled Tuesday Blitz"]
[Site "Chess.com"]
[Date "2020.09.08"]
[Round "10"]
[White "Gabix_94"]
[Black "Caracternin123"]
[Result "0-1"]
[WhiteElo "2835"]
[BlackElo "2724"]
[TimeControl "180+1"]
[EndTime "11:55:42 PDT"]
[Termination "Caracternin123 won by resignation"]

1. c4 {[%clk 0:03:00.9]} 1... e6 {[%clk 0:03:00.2]} 2. Nc3 {[%clk 0:03:00.5]}
2... d5 {[%clk 0:02:59.7]} 3. e3 {[%clk 0:03:00.8]} 3... Nf6 {[%clk 0:02:59.7]}
4. Nf3 {[%clk 0:03:00.7]} 4... b6 {[%clk 0:03:00.1]} 5. b3 {[%clk 0:03:01.1]}
5... Bb7 {[%clk 0:03:00.5]} 6. Bb2 {[%clk 0:03:01.5]} 6... Nbd7 {[%clk 0:03:01]}
7. cxd5 {[%clk 0:02:53.9]} 7... exd5 {[%clk 0:03:01.9]} 8. Be2 {[%clk
0:02:51.9]} 8... a6 {[%clk 0:03:01.8]} 9. O-O {[%clk 0:02:50.6]} 9... Bd6 {[%clk
0:03:02.1]} 10. Rc1 {[%clk 0:02:47.7]} 10... O-O {[%clk 0:03:02.3]} 11. Rc2
{[%clk 0:02:44.8]} 11... Rc8 {[%clk 0:02:38.5]} 12. Qa1 {[%clk 0:02:43.1]} 12...
c5 {[%clk 0:02:34]} 13. d4 {[%clk 0:02:39.8]} 13... c4 {[%clk 0:02:34.3]} 14.
bxc4 {[%clk 0:02:37.4]} 14... dxc4 {[%clk 0:02:35.2]} 15. a4 {[%clk 0:02:32]}
15... Nd5 {[%clk 0:02:13.5]} 16. Ba3 {[%clk 0:02:16.9]} 16... N7f6 {[%clk
0:01:18.4]} 17. Ne5 {[%clk 0:02:13]} 17... Nxc3 {[%clk 0:01:10.6]} 18. Rxc3
{[%clk 0:02:13.9]} 18... b5 {[%clk 0:01:11]} 19. Rb1 {[%clk 0:02:10.1]} 19...
Nd5 {[%clk 0:00:52.3]} 20. Rcc1 {[%clk 0:02:08]} 20... b4 {[%clk 0:00:52.5]} 21.
Bxc4 {[%clk 0:02:00.8]} 21... Qg5 {[%clk 0:00:45.6]} 22. Nf3 {[%clk 0:01:55.5]}
22... Qg6 {[%clk 0:00:43.6]} 23. Be2 {[%clk 0:01:41.5]} 23... Nc3 {[%clk
0:00:39.1]} 24. Rxc3 {[%clk 0:01:40.2]} 24... Rxc3 {[%clk 0:00:28.9]} 25. Bxb4
{[%clk 0:01:39.4]} 25... Bxb4 {[%clk 0:00:29.8]} 26. Rxb4 {[%clk 0:01:39.8]}
26... Rfc8 {[%clk 0:00:27.7]} 27. Rb1 {[%clk 0:01:17.6]} 27... Qxb1+ {[%clk
0:00:27]} 28. Qxb1 {[%clk 0:01:17.9]} 28... Rc1+ {[%clk 0:00:27.9]} 29. Qxc1
{[%clk 0:01:17.8]} 29... Rxc1+ {[%clk 0:00:28.8]} 30. Bf1 {[%clk 0:01:17.7]}
30... Be4 {[%clk 0:00:29.1]} 31. h3 {[%clk 0:01:14.6]} 31... Bd3 {[%clk
0:00:27.2]} 32. Nh2 {[%clk 0:01:15]} 32... Ra1 {[%clk 0:00:27.1]} 33. g4 {[%clk
0:01:15.3]} 33... Bxf1 {[%clk 0:00:26.3]} 34. Nxf1 {[%clk 0:01:16.2]} 34... Rxa4
{[%clk 0:00:26.8]} 35. Nd2 {[%clk 0:01:16.3]} 35... Rb4 {[%clk 0:00:27.3]} 36.
d5 {[%clk 0:01:14.4]} 36... a5 {[%clk 0:00:27.4]} 37. d6 {[%clk 0:01:14.8]}
37... a4 {[%clk 0:00:20.3]} 38. d7 {[%clk 0:01:12.9]} 38... Rb8 {[%clk
0:00:20.4]} 39. Nc4 {[%clk 0:01:13.4]} 39... Rd8 {[%clk 0:00:19.1]} 40. Nb6
{[%clk 0:01:13]} 40... a3 {[%clk 0:00:18.7]} 41. Kg2 {[%clk 0:01:12.4]} 41... a2
{[%clk 0:00:18.9]} 42. g5 {[%clk 0:01:11.9]} 42... a1=Q {[%clk 0:00:19.1]} 43.
g6 {[%clk 0:01:12.3]} 43... Qa7 {[%clk 0:00:19]} 44. gxf7+ {[%clk 0:01:12.1]}
44... Kxf7 {[%clk 0:00:19.9]} 45. Nc8 {[%clk 0:01:12.6]} 45... Qxd7 {[%clk
0:00:19.8]} 46. Nd6+ {[%clk 0:01:13.2]} 46... Qxd6 {[%clk 0:00:20.2]} 0-1

[Event "*** SCC Grand Prix: Titled Tuesday Blitz"]
[Site "Chess.com"]
[Date "2020.09.08"]
[Round "10"]
[White "AlexandraBotez"]
[Black "niki_2003"]
[Result "0-1"]
[WhiteElo "2207"]
[BlackElo "1699"]
[TimeControl "180+1"]
[EndTime "11:55:49 PDT"]
[Termination "niki_2003 won by resignation"]

1. d4 {[%clk 0:03:00.9]} 1... Nf6 {[%clk 0:02:59.7]} 2. c4 {[%clk 0:02:59.8]}
2... e6 {[%clk 0:02:59.5]} 3. Nf3 {[%clk 0:02:54.3]} 3... Bb4+ {[%clk
0:02:58.8]} 4. Bd2 {[%clk 0:02:53.8]} 4... Qe7 {[%clk 0:02:58.3]} 5. g3 {[%clk
0:02:49.8]} 5... O-O {[%clk 0:02:56.5]} 6. Bg2 {[%clk 0:02:42.3]} 6... Nc6
{[%clk 0:02:51.3]} 7. O-O {[%clk 0:02:40.4]} 7... Bxd2 {[%clk 0:02:51]} 8. Nbxd2
{[%clk 0:02:39.7]} 8... d6 {[%clk 0:02:51.5]} 9. Re1 {[%clk 0:02:38.6]} 9... e5
{[%clk 0:02:48]} 10. dxe5 {[%clk 0:02:34.6]} 10... dxe5 {[%clk 0:02:44.9]} 11.
e4 {[%clk 0:02:29.4]} 11... h6 {[%clk 0:02:42.9]} 12. Nb3 {[%clk 0:02:27.7]}
12... Be6 {[%clk 0:02:40.6]} 13. Qe2 {[%clk 0:02:26.9]} 13... a5 {[%clk
0:02:34.8]} 14. Rac1 {[%clk 0:02:26.1]} 14... Rfd8 {[%clk 0:02:28]} 15. Nbd2
{[%clk 0:02:17]} 15... Bg4 {[%clk 0:02:22.8]} 16. Qe3 {[%clk 0:02:14.4]} 16...
Be6 {[%clk 0:02:19.8]} 17. a3 {[%clk 0:02:13.5]} 17... Ng4 {[%clk 0:02:16.4]}
18. Qc3 {[%clk 0:02:11.8]} 18... Qc5 {[%clk 0:02:15]} 19. Rf1 {[%clk 0:02:05.7]}
19... Rd7 {[%clk 0:02:10.9]} 20. h3 {[%clk 0:02:05.1]} 20... Nf6 {[%clk
0:02:09.8]} 21. Nb3 {[%clk 0:01:48.8]} 21... Qb6 {[%clk 0:02:03.8]} 22. Rfd1
{[%clk 0:01:28.9]} 22... Nxe4 {[%clk 0:02:01.5]} 23. Qc2 {[%clk 0:01:27.5]}
23... Nxg3 {[%clk 0:01:46.8]} 24. Kh2 {[%clk 0:01:23]} 24... Bf5 {[%clk
0:01:41.6]} 25. Qc3 {[%clk 0:00:29.1]} 25... Ne2 {[%clk 0:01:33.1]} 26. Qe1
{[%clk 0:00:18.1]} 26... Nxc1 {[%clk 0:01:27.9]} 27. Nxc1 {[%clk 0:00:18.1]}
27... Rxd1 {[%clk 0:01:23.3]} 28. Qxd1 {[%clk 0:00:17.6]} 28... Qxf2 {[%clk
0:01:17.1]} 29. Nd3 {[%clk 0:00:15.1]} 29... Bxd3 {[%clk 0:01:13.6]} 30. Qxd3
{[%clk 0:00:15]} 30... Rd8 {[%clk 0:01:10.5]} 31. Qc3 {[%clk 0:00:14]} 31... Nd4
{[%clk 0:01:04.3]} 32. Qd3 {[%clk 0:00:06.4]} 32... Nxf3+ {[%clk 0:01:00.9]} 33.
Qxf3 {[%clk 0:00:07.3]} 33... Qxf3 {[%clk 0:00:57.6]} 34. Bxf3 {[%clk
0:00:08.2]} 34... Rd2+ {[%clk 0:00:56.7]} 35. Kg3 {[%clk 0:00:07.7]} 35... Rxb2
{[%clk 0:00:57.3]} 0-1

[Event "*** SCC Grand Prix: Titled Tuesday Blitz"]
[Site "Chess.com"]
[Date "2020.09.08"]
[Round "10"]
[White "TheMagnet"]
[Black "TrickyFortem"]
[Result "1/2-1/2"]
[WhiteElo "2575"]
[BlackElo "2462"]
[TimeControl "180+1"]
[EndTime "11:55:51 PDT"]
[Termination "Game drawn by repetition"]

1. d4 {[%clk 0:03:00.9]} 1... Nf6 {[%clk 0:02:59.8]} 2. c4 {[%clk 0:03:00.5]}
2... c6 {[%clk 0:03:00.1]} 3. Nc3 {[%clk 0:03:00.4]} 3... d5 {[%clk 0:02:59.7]}
4. Nf3 {[%clk 0:03:00.9]} 4... e6 {[%clk 0:02:58.3]} 5. e3 {[%clk 0:03:01]} 5...
Nbd7 {[%clk 0:02:58.5]} 6. Qc2 {[%clk 0:03:01.3]} 6... Bd6 {[%clk 0:02:58.3]} 7.
b3 {[%clk 0:03:00.8]} 7... O-O {[%clk 0:02:57.7]} 8. Be2 {[%clk 0:03:01.3]} 8...
b6 {[%clk 0:02:58.1]} 9. Bb2 {[%clk 0:03:00]} 9... Bb7 {[%clk 0:02:58.4]} 10.
O-O {[%clk 0:03:00.6]} 10... Rc8 {[%clk 0:02:58.8]} 11. Rad1 {[%clk 0:03:00.2]}
11... Qe7 {[%clk 0:02:53.3]} 12. Rfe1 {[%clk 0:02:53.5]} 12... dxc4 {[%clk
0:02:52.6]} 13. Bxc4 {[%clk 0:02:49.6]} 13... c5 {[%clk 0:02:44.2]} 14. d5
{[%clk 0:02:45.8]} 14... exd5 {[%clk 0:02:30.3]} 15. Nxd5 {[%clk 0:02:42.9]}
15... Nxd5 {[%clk 0:02:31.2]} 16. Bxd5 {[%clk 0:02:42.9]} 16... Bxd5 {[%clk
0:02:31.7]} 17. Rxd5 {[%clk 0:02:43.7]} 17... Nf6 {[%clk 0:02:28.6]} 18. Bxf6
{[%clk 0:02:31.8]} 18... Qxf6 {[%clk 0:02:27.9]} 19. Ng5 {[%clk 0:02:16.5]}
19... Qh6 {[%clk 0:02:16.7]} 20. Qxh7+ {[%clk 0:02:16]} 20... Qxh7 {[%clk
0:02:16.6]} 21. Nxh7 {[%clk 0:02:16.9]} 21... Bxh2+ {[%clk 0:02:17]} 22. Kxh2
{[%clk 0:02:17.8]} 22... Kxh7 {[%clk 0:02:17.8]} 23. Rd7 {[%clk 0:02:16.6]}
23... a5 {[%clk 0:02:18.2]} 24. Red1 {[%clk 0:01:49.6]} 24... c4 {[%clk
0:02:13.7]} 25. bxc4 {[%clk 0:01:49.4]} 25... Rxc4 {[%clk 0:02:14.6]} 26. Rb7
{[%clk 0:01:49.7]} 26... Rc2 {[%clk 0:02:13.3]} 27. Kg3 {[%clk 0:01:47.7]} 27...
Rxa2 {[%clk 0:02:09.1]} 28. Rxb6 {[%clk 0:01:46.5]} 28... a4 {[%clk 0:02:00.1]}
29. Ra6 {[%clk 0:01:44.4]} 29... Rc8 {[%clk 0:01:56.3]} 30. Rd7 {[%clk 0:01:41]}
30... Kg8 {[%clk 0:01:49]} 31. Raa7 {[%clk 0:01:39.2]} 31... Rf8 {[%clk
0:01:49]} 32. Rd4 {[%clk 0:01:38.3]} 32... a3 {[%clk 0:01:46]} 33. Rd3 {[%clk
0:01:38.5]} 33... Rc8 {[%clk 0:01:44.8]} 34. Rdxa3 {[%clk 0:01:33.1]} 34... Rxa3
{[%clk 0:01:45.7]} 35. Rxa3 {[%clk 0:01:33.6]} 35... g6 {[%clk 0:01:45.8]} 36.
Ra7 {[%clk 0:01:32.8]} 36... Rc4 {[%clk 0:01:45]} 37. Kf3 {[%clk 0:01:31.9]}
37... Kg7 {[%clk 0:01:44.8]} 38. g4 {[%clk 0:01:31.8]} 38... Kf6 {[%clk
0:01:45.1]} 39. Ra6+ {[%clk 0:01:31.4]} 39... Ke5 {[%clk 0:01:44.2]} 40. Ra5+
{[%clk 0:01:26.7]} 40... Kf6 {[%clk 0:01:44.6]} 41. Kg3 {[%clk 0:01:25]} 41...
Rb4 {[%clk 0:01:40.4]} 42. Ra6+ {[%clk 0:01:20.7]} 42... Ke7 {[%clk 0:01:37.6]}
43. g5 {[%clk 0:01:18.5]} 43... Rc4 {[%clk 0:01:35.9]} 44. f4 {[%clk 0:01:16.3]}
44... Rb4 {[%clk 0:01:34.1]} 45. Kf3 {[%clk 0:01:16.3]} 45... Rc4 {[%clk
0:01:34.1]} 46. Rb6 {[%clk 0:01:16.3]} 46... Ra4 {[%clk 0:01:33.5]} 47. Rb7+
{[%clk 0:01:16.5]} 47... Ke6 {[%clk 0:01:33.5]} 48. Rb6+ {[%clk 0:01:16.9]}
48... Ke7 {[%clk 0:01:33.9]} 49. Rb1 {[%clk 0:01:17.3]} 49... Rc4 {[%clk
0:01:33.6]} 50. Rd1 {[%clk 0:01:17.4]} 50... Rb4 {[%clk 0:01:33.5]} 51. Rd4
{[%clk 0:01:17.4]} 51... Rb1 {[%clk 0:01:33.3]} 52. Ke4 {[%clk 0:01:17.1]} 52...
Ke6 {[%clk 0:01:33.2]} 53. Ra4 {[%clk 0:01:17.1]} 53... Rb6 {[%clk 0:01:33.3]}
54. Rc4 {[%clk 0:01:15.6]} 54... Ra6 {[%clk 0:01:33.3]} 55. Rb4 {[%clk
0:01:15.7]} 55... Rc6 {[%clk 0:01:33.4]} 56. Kf3 {[%clk 0:01:15.9]} 56... Rc1
{[%clk 0:01:32.9]} 57. Rb6+ {[%clk 0:01:16.1]} 57... Ke7 {[%clk 0:01:33.2]} 58.
Rf6 {[%clk 0:01:15.9]} 58... Rc4 {[%clk 0:01:32.2]} 59. Ra6 {[%clk 0:01:12.3]}
59... Rb4 {[%clk 0:01:32.6]} 60. Ra5 {[%clk 0:01:10.6]} 60... Rc4 {[%clk
0:01:32.9]} 61. Re5+ {[%clk 0:01:10.8]} 61... Kf8 {[%clk 0:01:31.9]} 62. e4
{[%clk 0:01:09.9]} 62... Rc3+ {[%clk 0:01:31.4]} 63. Kg4 {[%clk 0:01:10]} 63...
Rc1 {[%clk 0:01:31.4]} 64. f5 {[%clk 0:01:10.2]} 64... Rg1+ {[%clk 0:01:31.4]}
65. Kf4 {[%clk 0:01:10.6]} 65... Rf1+ {[%clk 0:01:31.9]} 66. Ke3 {[%clk
0:01:10.4]} 66... gxf5 {[%clk 0:01:27.4]} 67. Rxf5 {[%clk 0:01:10.4]} 67... Rg1
{[%clk 0:01:27.4]} 68. Kf4 {[%clk 0:01:10.2]} 68... Ke7 {[%clk 0:01:27.6]} 69.
Ke5 {[%clk 0:01:09.8]} 69... Rg4 {[%clk 0:01:26.6]} 70. Kd5 {[%clk 0:01:09.1]}
70... Rg3 {[%clk 0:01:24.3]} 71. Re5+ {[%clk 0:01:08.9]} 71... Kf8 {[%clk
0:01:24.6]} 72. Kd4 {[%clk 0:01:08.4]} 72... Kg7 {[%clk 0:01:24]} 73. Rf5 {[%clk
0:01:07.8]} 73... Kg6 {[%clk 0:01:23.5]} 74. Rf6+ {[%clk 0:01:07.7]} 74... Kg7
{[%clk 0:01:23.9]} 75. Rf5 {[%clk 0:01:08.1]} 75... Kg6 {[%clk 0:01:24.2]} 76.
Rf6+ {[%clk 0:01:08.6]} 76... Kg7 {[%clk 0:01:24.6]} 77. Rf5 {[%clk 0:01:08.9]}
1/2-1/2

[Event "*** SCC Grand Prix: Titled Tuesday Blitz"]
[Site "Chess.com"]
[Date "2020.09.08"]
[Round "10"]
[White "PowerThinking2650"]
[Black "mmaks007"]
[Result "0-1"]
[WhiteElo "2383"]
[BlackElo "2273"]
[TimeControl "180+1"]
[EndTime "11:55:51 PDT"]
[Termination "mmaks007 won by checkmate"]

1. e4 {[%clk 0:03:00.9]} 1... g6 {[%clk 0:02:59]} 2. d4 {[%clk 0:03:00.2]} 2...
Bg7 {[%clk 0:02:59.2]} 3. c4 {[%clk 0:03:00.3]} 3... d6 {[%clk 0:02:59.7]} 4.
Nc3 {[%clk 0:03:00.4]} 4... e5 {[%clk 0:03:00.1]} 5. Nge2 {[%clk 0:02:59.5]}
5... exd4 {[%clk 0:03:00.3]} 6. Nxd4 {[%clk 0:02:59]} 6... Nf6 {[%clk 0:03:01]}
7. f3 {[%clk 0:02:54.9]} 7... O-O {[%clk 0:03:00.9]} 8. Be3 {[%clk 0:02:55.1]}
8... Re8 {[%clk 0:03:01.3]} 9. Be2 {[%clk 0:02:55.3]} 9... c6 {[%clk 0:03:01.6]}
10. Qd2 {[%clk 0:02:36.1]} 10... d5 {[%clk 0:03:01.3]} 11. cxd5 {[%clk
0:01:50.5]} 11... cxd5 {[%clk 0:02:59.3]} 12. exd5 {[%clk 0:01:42]} 12... Nxd5
{[%clk 0:02:57.3]} 13. Nxd5 {[%clk 0:01:40.8]} 13... Qxd5 {[%clk 0:02:58.2]} 14.
Bf2 {[%clk 0:01:36.2]} 14... Nc6 {[%clk 0:02:47.2]} 15. Nxc6 {[%clk 0:01:36]}
15... bxc6 {[%clk 0:02:41.9]} 16. Qxd5 {[%clk 0:01:20]} 16... cxd5 {[%clk
0:02:40.3]} 17. Kf1 {[%clk 0:01:08.7]} 17... Bxb2 {[%clk 0:02:35.3]} 18. Rb1
{[%clk 0:01:08.3]} 18... Bc3 {[%clk 0:02:33.6]} 19. g4 {[%clk 0:01:05.9]} 19...
d4 {[%clk 0:02:30.1]} 20. Bd3 {[%clk 0:01:02.9]} 20... Be6 {[%clk 0:02:29.8]}
21. a4 {[%clk 0:00:59.6]} 21... Rab8 {[%clk 0:02:28.9]} 22. Kg2 {[%clk
0:00:58.6]} 22... a5 {[%clk 0:02:20.6]} 23. Bb5 {[%clk 0:00:55]} 23... Red8
{[%clk 0:02:17.9]} 24. Rhd1 {[%clk 0:00:52.7]} 24... d3 {[%clk 0:02:05.2]} 25.
Rxd3 {[%clk 0:00:39.6]} 25... Rxd3 {[%clk 0:02:04.7]} 26. Bxd3 {[%clk
0:00:39.6]} 26... Rxb1 {[%clk 0:02:04.7]} 27. Bxb1 {[%clk 0:00:40.2]} 27... Bb3
{[%clk 0:02:04.9]} 28. f4 {[%clk 0:00:31.9]} 28... Bxa4 {[%clk 0:02:02.9]} 29.
f5 {[%clk 0:00:32.3]} 29... Bb3 {[%clk 0:02:01.7]} 30. fxg6 {[%clk 0:00:27.7]}
30... hxg6 {[%clk 0:02:00.2]} 31. h4 {[%clk 0:00:27.3]} 31... a4 {[%clk
0:01:56.8]} 32. Bc5 {[%clk 0:00:27.1]} 32... Bb2 {[%clk 0:01:55]} 33. h5 {[%clk
0:00:26.1]} 33... gxh5 {[%clk 0:01:49.3]} 34. gxh5 {[%clk 0:00:24.8]} 34... a3
{[%clk 0:01:49.4]} 35. h6 {[%clk 0:00:15.2]} 35... a2 {[%clk 0:01:47.9]} 36. h7+
{[%clk 0:00:15.4]} 36... Kh8 {[%clk 0:01:46.5]} 37. Bxa2 {[%clk 0:00:13.8]}
37... Bxa2 {[%clk 0:01:46.7]} 38. Kf3 {[%clk 0:00:13.2]} 38... Kxh7 {[%clk
0:01:46.9]} 39. Kf4 {[%clk 0:00:13.8]} 39... Kg6 {[%clk 0:01:47.2]} 40. Bb4
{[%clk 0:00:13]} 40... f5 {[%clk 0:01:48.1]} 41. Bc5 {[%clk 0:00:12.9]} 41...
Bc1+ {[%clk 0:01:48.2]} 42. Kf3 {[%clk 0:00:13.1]} 42... Bd5+ {[%clk 0:01:48.1]}
43. Kf2 {[%clk 0:00:13.6]} 43... Kg5 {[%clk 0:01:48.3]} 44. Bd4 {[%clk
0:00:13.8]} 44... Kg4 {[%clk 0:01:48.4]} 45. Bc5 {[%clk 0:00:14.1]} 45... f4
{[%clk 0:01:48.5]} 46. Bb6 {[%clk 0:00:14.3]} 46... f3 {[%clk 0:01:48.9]} 47.
Bc5 {[%clk 0:00:14.4]} 47... Bf4 {[%clk 0:01:48.4]} 48. Bb6 {[%clk 0:00:13.6]}
48... Bg3+ {[%clk 0:01:48.8]} 49. Kg1 {[%clk 0:00:14]} 49... Kf5 {[%clk
0:01:42.5]} 50. Ba7 {[%clk 0:00:13.9]} 50... Ke4 {[%clk 0:01:42.9]} 51. Bb6
{[%clk 0:00:13.8]} 51... Bf4 {[%clk 0:01:42.9]} 52. Kf2 {[%clk 0:00:12.3]} 52...
Bg5 {[%clk 0:01:41.1]} 53. Kf1 {[%clk 0:00:12]} 53... Be3 {[%clk 0:01:39.9]} 54.
Ba5 {[%clk 0:00:11.9]} 54... Bc4+ {[%clk 0:01:39.3]} 55. Ke1 {[%clk 0:00:12.3]}
55... f2+ {[%clk 0:01:39.8]} 56. Kd1 {[%clk 0:00:12.9]} 56... f1=Q+ {[%clk
0:01:40.2]} 57. Kc2 {[%clk 0:00:13.8]} 57... Qc1# {[%clk 0:01:39.6]} 0-1

[Event "*** SCC Grand Prix: Titled Tuesday Blitz"]
[Site "Chess.com"]
[Date "2020.09.08"]
[Round "10"]
[White "Taron_Shagbazyan"]
[Black "maximnovik"]
[Result "1-0"]
[WhiteElo "2672"]
[BlackElo "2499"]
[TimeControl "180+1"]
[EndTime "11:55:53 PDT"]
[Termination "Taron_Shagbazyan won on time"]

1. d4 {[%clk 0:03:00.9]} 1... Nf6 {[%clk 0:02:55.4]} 2. c4 {[%clk 0:03:01.1]}
2... g6 {[%clk 0:02:54.6]} 3. g3 {[%clk 0:03:00.6]} 3... Bg7 {[%clk 0:02:54.6]}
4. Bg2 {[%clk 0:03:00.9]} 4... O-O {[%clk 0:02:55]} 5. Nc3 {[%clk 0:03:01.1]}
5... d6 {[%clk 0:02:52.8]} 6. e3 {[%clk 0:03:00.4]} 6... Nbd7 {[%clk 0:02:53.2]}
7. Nge2 {[%clk 0:03:00.7]} 7... e5 {[%clk 0:02:53.6]} 8. O-O {[%clk 0:03:01.1]}
8... Re8 {[%clk 0:02:50.2]} 9. b3 {[%clk 0:03:01.1]} 9... c6 {[%clk 0:02:45.4]}
10. Bb2 {[%clk 0:03:00.3]} 10... Qe7 {[%clk 0:02:31.5]} 11. d5 {[%clk
0:02:57.5]} 11... c5 {[%clk 0:02:26.2]} 12. e4 {[%clk 0:02:57.4]} 12... Rf8
{[%clk 0:02:19.3]} 13. a3 {[%clk 0:02:57.6]} 13... Ne8 {[%clk 0:02:16.6]} 14. b4
{[%clk 0:02:57.5]} 14... b6 {[%clk 0:02:13.7]} 15. Qd3 {[%clk 0:02:56.2]} 15...
f5 {[%clk 0:02:10.3]} 16. Rae1 {[%clk 0:02:41.1]} 16... f4 {[%clk 0:02:09.1]}
17. Nb1 {[%clk 0:02:28.1]} 17... g5 {[%clk 0:02:04.8]} 18. Nd2 {[%clk
0:02:23.9]} 18... h5 {[%clk 0:01:41.7]} 19. gxf4 {[%clk 0:02:18]} 19... exf4
{[%clk 0:01:38.4]} 20. Bxg7 {[%clk 0:02:06.4]} 20... Qxg7 {[%clk 0:01:38]} 21.
f3 {[%clk 0:01:56.2]} 21... Ne5 {[%clk 0:01:38.2]} 22. Qc3 {[%clk 0:01:54.9]}
22... Bd7 {[%clk 0:01:36.5]} 23. Rb1 {[%clk 0:01:52.1]} 23... Kh7 {[%clk
0:01:13.7]} 24. Kh1 {[%clk 0:01:48.9]} 24... Nf6 {[%clk 0:00:32.1]} 25. bxc5
{[%clk 0:01:46.6]} 25... bxc5 {[%clk 0:00:31.2]} 26. Rb7 {[%clk 0:01:45.7]}
26... Rf7 {[%clk 0:00:30.7]} 27. Nc1 {[%clk 0:01:43]} 27... Rg8 {[%clk 0:00:31]}
28. Nd3 {[%clk 0:01:40.9]} 28... Bc8 {[%clk 0:00:14.7]} 29. Rxf7 {[%clk
0:01:39.9]} 29... Nxf7 {[%clk 0:00:14.7]} 30. e5 {[%clk 0:01:40.4]} 30... dxe5
{[%clk 0:00:14.4]} 31. Nxe5 {[%clk 0:01:40.1]} 31... Nd7 {[%clk 0:00:14.9]} 32.
Qd3+ {[%clk 0:01:35.9]} 32... Kh6 {[%clk 0:00:15.1]} 33. Nc6 {[%clk 0:01:32.6]}
33... Nde5 {[%clk 0:00:14.6]} 34. Nxe5 {[%clk 0:01:30.6]} 34... Nxe5 {[%clk
0:00:14.6]} 35. Qe2 {[%clk 0:01:29.7]} 35... Bf5 {[%clk 0:00:14.4]} 36. Ne4
{[%clk 0:01:27.3]} 36... Bxe4 {[%clk 0:00:11.2]} 37. Qxe4 {[%clk 0:01:28.2]}
37... Qf6 {[%clk 0:00:10.5]} 38. Re1 {[%clk 0:01:27]} 38... Ng6 {[%clk 0:00:10]}
39. Qe6 {[%clk 0:01:24.3]} 39... Qd4 {[%clk 0:00:07.6]} 40. Qxg8 {[%clk
0:01:23.2]} 40... Qd2 {[%clk 0:00:06.5]} 41. Qe6 {[%clk 0:01:22.6]} 41... g4
{[%clk 0:00:04.8]} 42. Qe2 {[%clk 0:01:18.4]} 42... Qc3 {[%clk 0:00:01.2]} 43.
d6 {[%clk 0:01:18]} 1-0

[Event "*** SCC Grand Prix: Titled Tuesday Blitz"]
[Site "Chess.com"]
[Date "2020.09.08"]
[Round "10"]
[White "anon569"]
[Black "jucAxx"]
[Result "0-1"]
[WhiteElo "2239"]
[BlackElo "2092"]
[TimeControl "180+1"]
[EndTime "11:55:54 PDT"]
[Termination "jucAxx won by resignation"]

1. e4 {[%clk 0:03:00.9]} 1... e6 {[%clk 0:02:57.5]} 2. Nf3 {[%clk 0:02:59.6]}
2... d5 {[%clk 0:02:57.7]} 3. Nc3 {[%clk 0:02:58.4]} 3... dxe4 {[%clk
0:02:55.5]} 4. Nxe4 {[%clk 0:02:57.9]} 4... Nd7 {[%clk 0:02:56.4]} 5. d4 {[%clk
0:02:56.6]} 5... Ngf6 {[%clk 0:02:57]} 6. Ng3 {[%clk 0:02:54.4]} 6... c5 {[%clk
0:02:56.9]} 7. c3 {[%clk 0:02:52.4]} 7... cxd4 {[%clk 0:02:57.2]} 8. Nxd4 {[%clk
0:02:51.3]} 8... Bc5 {[%clk 0:02:55.5]} 9. Be2 {[%clk 0:02:50.8]} 9... O-O
{[%clk 0:02:55.8]} 10. O-O {[%clk 0:02:50.7]} 10... h6 {[%clk 0:02:56.3]} 11. h3
{[%clk 0:02:37.5]} 11... Ne5 {[%clk 0:02:28]} 12. Nb3 {[%clk 0:02:15.4]} 12...
Bb6 {[%clk 0:02:17.4]} 13. Bf4 {[%clk 0:02:14.6]} 13... Ng6 {[%clk 0:02:16.8]}
14. Bd6 {[%clk 0:02:14.4]} 14... Re8 {[%clk 0:02:16.1]} 15. Bf3 {[%clk
0:02:14.6]} 15... Bc7 {[%clk 0:02:15.4]} 16. Bxc7 {[%clk 0:01:49.3]} 16... Qxc7
{[%clk 0:02:16.3]} 17. Qc2 {[%clk 0:01:48]} 17... Bd7 {[%clk 0:02:03.1]} 18. Ne4
{[%clk 0:01:37]} 18... Nd5 {[%clk 0:01:43.8]} 19. Rad1 {[%clk 0:01:28.1]} 19...
Rad8 {[%clk 0:01:31.8]} 20. Nec5 {[%clk 0:00:45.1]} 20... b6 {[%clk 0:01:20.1]}
21. Na6 {[%clk 0:00:18]} 21... Qe5 {[%clk 0:01:01.9]} 22. Rfe1 {[%clk
0:00:15.2]} 22... Qg5 {[%clk 0:01:01.1]} 23. Bxd5 {[%clk 0:00:15]} 23... exd5
{[%clk 0:00:56.4]} 24. Nc7 {[%clk 0:00:13.9]} 24... Bxh3 {[%clk 0:00:54.8]} 25.
f3 {[%clk 0:00:12.8]} 25... Rxe1+ {[%clk 0:00:53.3]} 26. Rxe1 {[%clk 0:00:12.4]}
26... Bf5 {[%clk 0:00:51.2]} 27. Qf2 {[%clk 0:00:11.5]} 27... Nf4 {[%clk
0:00:50.9]} 28. Kf1 {[%clk 0:00:10.9]} 28... Nd3 {[%clk 0:00:50.3]} 29. Qe2
{[%clk 0:00:05.6]} 29... Nxe1 {[%clk 0:00:48.3]} 30. Kxe1 {[%clk 0:00:06.1]}
30... Qg3+ {[%clk 0:00:48.1]} 0-1

[Event "*** SCC Grand Prix: Titled Tuesday Blitz"]
[Site "Chess.com"]
[Date "2020.09.08"]
[Round "10"]
[White "Reader777"]
[Black "Olga_Girya"]
[Result "1-0"]
[WhiteElo "2676"]
[BlackElo "2499"]
[TimeControl "180+1"]
[EndTime "11:55:56 PDT"]
[Termination "Reader777 won by resignation"]

1. d4 {[%clk 0:03:00.9]} 1... d5 {[%clk 0:02:58.9]} 2. c4 {[%clk 0:03:00.5]}
2... e6 {[%clk 0:02:59.2]} 3. Nc3 {[%clk 0:03:00.3]} 3... Nf6 {[%clk 0:02:59.5]}
4. cxd5 {[%clk 0:02:59.5]} 4... exd5 {[%clk 0:02:59.5]} 5. Bg5 {[%clk
0:02:59.6]} 5... Bb4 {[%clk 0:02:59.4]} 6. e3 {[%clk 0:02:59.1]} 6... h6 {[%clk
0:02:58.9]} 7. Bh4 {[%clk 0:02:53.1]} 7... g5 {[%clk 0:02:59.1]} 8. Bg3 {[%clk
0:02:53.4]} 8... Ne4 {[%clk 0:02:59.7]} 9. Rc1 {[%clk 0:02:52.1]} 9... h5 {[%clk
0:02:53.9]} 10. Qa4+ {[%clk 0:02:27.5]} 10... Nc6 {[%clk 0:02:53]} 11. Bb5
{[%clk 0:02:27.8]} 11... Bd7 {[%clk 0:02:44.3]} 12. Bxc6 {[%clk 0:02:02.9]}
12... Bxc3+ {[%clk 0:02:43.9]} 13. Rxc3 {[%clk 0:02:02.9]} 13... Bxc6 {[%clk
0:02:20.6]} 14. Rxc6 {[%clk 0:02:02.5]} 14... Qd7 {[%clk 0:01:54.1]} 15. Ra6
{[%clk 0:01:36.8]} 15... bxa6 {[%clk 0:01:53.5]} 16. Qxa6 {[%clk 0:01:37]} 16...
h4 {[%clk 0:01:23.5]} 17. Be5 {[%clk 0:01:35]} 17... f6 {[%clk 0:00:28.6]} 18.
f3 {[%clk 0:01:32.9]} 18... fxe5 {[%clk 0:00:26.8]} 19. fxe4 {[%clk 0:01:33]}
19... exd4 {[%clk 0:00:21.3]} 20. exd4 {[%clk 0:01:32.1]} 20... dxe4 {[%clk
0:00:19.6]} 21. Ne2 {[%clk 0:01:31.5]} 21... Rf8 {[%clk 0:00:18.8]} 22. Qg6+
{[%clk 0:01:29.2]} 22... Qf7 {[%clk 0:00:18.6]} 23. Qxe4+ {[%clk 0:01:29]} 23...
Qe7 {[%clk 0:00:18.2]} 24. Qxa8+ {[%clk 0:01:28.8]} 24... Kd7 {[%clk 0:00:18.4]}
25. Qd5+ {[%clk 0:01:28.2]} 25... Kc8 {[%clk 0:00:13.6]} 26. Rf1 {[%clk
0:00:56.7]} 26... Qb4+ {[%clk 0:00:13.4]} 27. Nc3 {[%clk 0:00:56.7]} 27... Re8+
{[%clk 0:00:12.6]} 28. Kd1 {[%clk 0:00:56]} 28... Qxb2 {[%clk 0:00:12.3]} 29.
Qa8+ {[%clk 0:00:54.7]} 29... Kd7 {[%clk 0:00:12.1]} 30. Rf7+ {[%clk 0:00:55.1]}
30... Re7 {[%clk 0:00:06.8]} 31. Qd5+ {[%clk 0:00:52.6]} 31... Kc8 {[%clk
0:00:06.9]} 32. Rxe7 {[%clk 0:00:49.9]} 32... Qa1+ {[%clk 0:00:06.1]} 33. Kc2
{[%clk 0:00:49.4]} 1-0